[Event "Hungarian Rapid-ch 2022"]
[Site "Ajka"]
[Date "2022.07.16"]
[Round "8.22"]
[White "Giang, Tran Nam"]
[Black "Kiss, Pal"]
[Result "1-0"]
[ECO "B34"]
[WhiteElo "2144"]
[BlackElo "2243"]
[Annotator "ChessBase"]
[PlyCount "74"]
[EventDate "2022.07.15"]
[EventType "swiss"]
[EventCountry "HUN"]
[SourceTitle "playchess.com"]
[Source "ChessBase"]
[SourceQuality "1"]
[TimeControl "900+10"]

1. e4 {[%emt 0:00:13]} c5 {[%emt 0:00:14]} 2. Nf3 {[%emt 0:00:02]} Nc6 {[%emt 0:00:01]} 3. d4 {[%emt 0:00:01]} cxd4 {[%emt 0:00:01]} 4. Nxd4 {[%emt 0:00:01]} Nf6 {[%emt 0:00:03]} 5. Nc3 {[%emt 0:00:01]} e5 {[%emt 0:00:04]} 6. Ndb5 {[%emt 0:00:01]} h6 {[%emt 0:00:01]} 7. Nd6+ {[%emt 0:00:27]} Bxd6 {[%emt 0:00:02]} 8. Qxd6 {[%emt 0:00:02]} Qe7 {[%emt 0:00:02]} 9. Qd1 {[%emt 0:00:25]} O-O {[%emt 0:00:03]} 10. Bc4 {[%emt 0:00:25]} d6 {[%emt 0:00:16]} 11. O-O {[%emt 0:00:38]} Be6 {[%emt 0:00:11]} 12. Nd5 {[%emt 0:00:46]} Bxd5 {[%emt 0:00:21]} 13. Bxd5 {[%emt 0:00:32]} Nb4 {[%emt 0:00:57]} 14. Be3 {[%emt 0:01:37]} Rfc8 {[%emt 0:02:45]} 15. c3 {[%emt 0:00:27]} Nbxd5 {[%emt 0:00:18]} 16. exd5 {[%emt 0:00:02]} b6 {[%emt 0:02:00]} 17. Qd3 {[%emt 0:01:56]} Qc7 {[%emt 0:00:45]} 18. Rfd1 {[%emt 0:00:52]} Qc4 {[%emt 0:00:44]} 19. f3 {[%emt 0:00:42]} Qxd3 {[%emt 0:00:47]} 20. Rxd3 {[%emt 0:00:01]} Nd7 {[%emt 0:00:28]} 21. Kf2 {[%emt 0:01:35]} f6 {[%emt 0:00:23]} 22. h4 {[%emt 0:00:36]} h5 {[%emt 0:00:28]} 23. Ke2 {[%emt 0:01:21]} Kf7 {[%emt 0:00:20]} 24. Rc1 {[%emt 0:00:25]} b5 {[%emt 0:01:54]} 25. b3 {[%emt 0:01:32]} a5 {[%emt 0:01:26]} 26. c4 {[%emt 0:00:46]} b4 {[%emt 0:00:42]} 27. Rd2 {[%emt 0:00:28]} a4 {[%emt 0:00:34]} 28. Rb2 {[%emt 0:00:41]} axb3 {[%emt 0:00:40]} 29. axb3 {[%emt 0:00:01]} Nc5 {[%emt 0:00:20]} 30. Bxc5 {[%emt 0:00:41]} Rxc5 {[%emt 0:00:16]} 31. Kd3 {[%emt 0:00:14]} g6 {[%emt 0:00:30]} 32. Rg1 {[%emt 0:00:19]} Rca5 {[%emt 0:00:24]} 33. Kc2 {[%emt 0:00:18]} Ra1 {[%emt 0:00:27]} 34. Rxa1 {[%emt 0:00:15]} Rxa1 {[%emt 0:00:01]} 35. Rb1 {[%emt 0:00:06]} Ra2+ {[%emt 0:00:40]} 36. Rb2 {[%emt 0:00:01]} Ra1 {[%emt 0:00:06]} 37. Rb1 {[%emt 0:00:02]} Ra2+ {[%emt 0:00:01]} 1-0

[Event "Hungarian Rapid-ch 2022"]
[Site "Ajka"]
[Date "2022.07.16"]
[Round "8.23"]
[White "Margl, Roland"]
[Black "Tancsa, Tamas"]
[Result "1/2-1/2"]
[ECO "E62"]
[WhiteElo "2312"]
[BlackElo "2103"]
[Annotator "ChessBase"]
[PlyCount "91"]
[EventDate "2022.07.15"]
[EventType "swiss"]
[EventCountry "HUN"]
[SourceTitle "playchess.com"]
[Source "ChessBase"]
[SourceQuality "1"]
[TimeControl "900+10"]

1. Nf3 {[%emt 0:00:12]} Nf6 {[%emt 0:00:11]} 2. c4 {[%emt 0:00:02]} g6 {[%emt 0:00:01]} 3. d4 {[%emt 0:00:00]} Bg7 {[%emt 0:00:01]} 4. g3 {[%emt 0:00:01]} O-O {[%emt 0:00:02]} 5. Bg2 {[%emt 0:00:01]} d6 {[%emt 0:00:02]} 6. O-O {[%emt 0:00:02]} Nc6 {[%emt 0:00:07]} 7. Nc3 {[%emt 0:00:01]} e5 {[%emt 0:00:01]} 8. dxe5 {[%emt 0:00:15]} dxe5 {[%emt 0:00:01]} 9. Bg5 {[%emt 0:00:01]} Be6 {[%emt 0:00:01]} 10. Qa4 {[%emt 0:01:42]} Qb8 {[%emt 0:00:03]} 11. Nd2 {[%emt 0:01:14]} Nd7 {[%emt 0:00:01]} 12. Bxc6 {[%emt 0:00:05]} bxc6 {[%emt 0:00:01]} 13. Qxc6 {[%emt 0:00:01]} Qxb2 {[%emt 0:00:02]} 14. Nd5 {[%emt 0:00:01]} e4 {[%emt 0:00:01]} 15. Rab1 {[%emt 0:05:24]} Qxa2 {[%emt 0:02:26]} 16. Nxc7 {[%emt 0:05:12]} Rac8 {[%emt 0:00:26]} 17. Rb7 {[%emt 0:00:32]} Bh3 {[%emt 0:04:15]} 18. Rc1 {[%emt 0:00:37]} Rfe8 {[%emt 0:06:38]} 19. Qa6 {[%emt 0:00:24]} Qxa6 {[%emt 0:01:22]} 20. Nxa6 {[%emt 0:00:01]} Bd4 {[%emt 0:00:02]} 21. Nb3 {[%emt 0:00:11]} Nc5 {[%emt 0:00:31]} 22. Naxc5 {[%emt 0:00:26]} Bxc5 {[%emt 0:00:08]} 23. Nxc5 {[%emt 0:00:09]} Rxc5 {[%emt 0:00:25]} 24. Be3 {[%emt 0:00:01]} Rc6 {[%emt 0:00:35]} 25. Rxa7 {[%emt 0:00:06]} Rb8 {[%emt 0:01:16]} 26. Ra2 {[%emt 0:00:29]} Be6 {[%emt 0:00:34]} 27. Rac2 {[%emt 0:00:01]} f5 {[%emt 0:00:03]} 28. Kg2 {[%emt 0:00:09]} Kf7 {[%emt 0:00:01]} 29. c5 {[%emt 0:00:06]} Kf6 {[%emt 0:00:23]} 30. h4 {[%emt 0:00:07]} Rb4 {[%emt 0:00:05]} 31. Ra1 {[%emt 0:00:35]} Rc4 {[%emt 0:00:19]} 32. Rb2 {[%emt 0:00:08]} R4xc5 {[%emt 0:00:04]} 33. Bxc5 {[%emt 0:00:11]} Rxc5 {[%emt 0:00:01]} 34. Rb6 {[%emt 0:00:13]} Ke5 {[%emt 0:00:15]} 35. Ra7 {[%emt 0:00:07]} Bc4 {[%emt 0:00:22]} 36. Rb2 {[%emt 0:01:10]} h6 {[%emt 0:00:11]} 37. Rc2 {[%emt 0:00:34]} e3 {[%emt 0:00:09]} 38. f3 {[%emt 0:00:09]} g5 {[%emt 0:00:10]} 39. hxg5 {[%emt 0:00:14]} hxg5 {[%emt 0:00:00]} 40. Re7+ {[%emt 0:00:03]} Kd4 {[%emt 0:00:04]} 41. Rd7+ {[%emt 0:00:32]} Ke5 {[%emt 0:00:04]} 42. Kf1 {[%emt 0:00:09]} g4 {[%emt 0:00:33]} 43. Re7+ {[%emt 0:00:14]} Kf6 {[%emt 0:00:04]} 44. Rxe3 {[%emt 0:00:04]} gxf3 {[%emt 0:00:07]} 45. Rxf3 {[%emt 0:00:04]} Ke5 {[%emt 0:00:16]} 46. Rf4 {[%emt 0:00:09]} 1/2-1/2

[Event "Hungarian Rapid-ch 2022"]
[Site "Ajka"]
[Date "2022.07.16"]
[Round "8.24"]
[White "Meszaros, Tamas"]
[Black "Miszler, Levente"]
[Result "1/2-1/2"]
[ECO "A08"]
[WhiteElo "2368"]
[BlackElo "2243"]
[Annotator "ChessBase"]
[PlyCount "98"]
[EventDate "2022.07.15"]
[EventType "swiss"]
[EventCountry "HUN"]
[SourceTitle "playchess.com"]
[Source "ChessBase"]
[SourceQuality "1"]
[TimeControl "900+10"]

1. e4 {[%emt 0:00:11]} e6 {[%emt 0:00:11]} 2. d3 {[%emt 0:00:03]} d5 {[%emt 0:00:03]} 3. Nd2 {[%emt 0:00:01]} Nf6 {[%emt 0:00:03]} 4. Ngf3 {[%emt 0:00:01]} c5 {[%emt 0:00:01]} 5. g3 {[%emt 0:00:01]} Nc6 {[%emt 0:00:01]} 6. Bg2 {[%emt 0:00:01]} Be7 {[%emt 0:00:01]} 7. O-O {[%emt 0:00:02]} O-O {[%emt 0:00:03]} 8. Re1 {[%emt 0:00:02]} b5 {[%emt 0:00:04]} 9. exd5 {[%emt 0:00:02]} exd5 {[%emt 0:00:03]} 10. a4 {[%emt 0:00:01]} b4 {[%emt 0:00:10]} 11. d4 {[%emt 0:00:01]} a5 {[%emt 0:01:32]} 12. dxc5 {[%emt 0:01:05]} Bxc5 {[%emt 0:00:05]} 13. Nb3 {[%emt 0:00:02]} Bb6 {[%emt 0:00:11]} 14. Bg5 {[%emt 0:01:51]} Bg4 {[%emt 0:01:47]} 15. h3 {[%emt 0:04:24]} Bh5 {[%emt 0:01:00]} 16. Bxf6 {[%emt 0:00:08]} gxf6 {[%emt 0:01:50]} 17. Qd2 {[%emt 0:02:34]} Rc8 {[%emt 0:01:37]} 18. Nh4 {[%emt 0:01:53]} Ne7 {[%emt 0:03:31]} 19. Nd4 {[%emt 0:02:09]} Bg6 {[%emt 0:00:39]} 20. Rad1 {[%emt 0:02:18]} Qd6 {[%emt 0:01:03]} 21. Nxg6 {[%emt 0:01:19]} hxg6 {[%emt 0:00:28]} 22. Re2 {[%emt 0:00:01]} Rfe8 {[%emt 0:00:58]} 23. h4 {[%emt 0:00:16]} Rc4 {[%emt 0:00:16]} 24. Qe3 {[%emt 0:00:31]} Kg7 {[%emt 0:00:31]} 25. b3 {[%emt 0:00:09]} Rc3 {[%emt 0:00:23]} 26. Qd2 {[%emt 0:00:11]} Qc5 {[%emt 0:01:45]} 27. Re3 {[%emt 0:00:12]} Rc8 {[%emt 0:00:41]} 28. Qe1 {[%emt 0:00:08]} Rxe3 {[%emt 0:00:33]} 29. Qxe3 {[%emt 0:00:05]} Nc6 {[%emt 0:00:03]} 30. Nxc6 {[%emt 0:00:10]} Qxe3 {[%emt 0:00:02]} 31. fxe3 {[%emt 0:00:01]} Bxe3+ {[%emt 0:00:02]} 32. Kf1 {[%emt 0:00:01]} Rxc6 {[%emt 0:00:03]} 33. Bxd5 {[%emt 0:00:34]} Rxc2 {[%emt 0:00:11]} 34. Bc4 {[%emt 0:00:00]} Rf2+ {[%emt 0:00:27]} 35. Ke1 {[%emt 0:00:01]} Rg2 {[%emt 0:00:05]} 36. Rd7 {[%emt 0:00:01]} Rxg3 {[%emt 0:00:30]} 37. Rxf7+ {[%emt 0:00:01]} Kh6 {[%emt 0:00:01]} 38. Rxf6 {[%emt 0:00:01]} Rg4 {[%emt 0:00:13]} 39. h5 {[%emt 0:00:47]} Bd4 {[%emt 0:00:13]} 40. Rd6 {[%emt 0:00:17]} Bc3+ {[%emt 0:00:06]} 41. Kd1 {[%emt 0:00:11]} Rg1+ {[%emt 0:00:14]} 42. Ke2 {[%emt 0:00:00]} Kxh5 {[%emt 0:00:07]} 43. Rd5+ {[%emt 0:00:02]} Rg5 {[%emt 0:00:04]} 44. Kf3 {[%emt 0:00:08]} Rxd5 {[%emt 0:00:10]} 45. Bxd5 {[%emt 0:00:01]} Kh4 {[%emt 0:00:01]} 46. Be4 {[%emt 0:00:03]} g5 {[%emt 0:00:01]} 47. Bf5 {[%emt 0:00:01]} Bd2 {[%emt 0:00:02]} 48. Bg4 {[%emt 0:00:01]} Bc3 {[%emt 0:00:02]} 49. Bf5 {[%emt 0:00:01]} Bd2 1/2-1/2

[Event "Hungarian Rapid-ch 2022"]
[Site "Ajka"]
[Date "2022.07.16"]
[Round "8.25"]
[White "Lizak, Peter"]
[Black "Nagy, Kristof"]
[Result "1-0"]
[ECO "D00"]
[WhiteElo "2400"]
[BlackElo "2162"]
[Annotator "ChessBase"]
[PlyCount "115"]
[EventDate "2022.07.15"]
[EventType "swiss"]
[EventCountry "HUN"]
[SourceTitle "playchess.com"]
[Source "ChessBase"]
[SourceQuality "1"]
[TimeControl "900+10"]

1. d4 {[%emt 0:00:12]} d5 {[%emt 0:00:13]} 2. Nc3 {[%emt 0:00:02]} Nf6 {[%emt 0:00:11]} 3. Bf4 {[%emt 0:00:02]} e6 {[%emt 0:00:07]} 4. Nb5 {[%emt 0:00:02]} Na6 {[%emt 0:00:53]} 5. a3 {[%emt 0:00:02]} Bd7 {[%emt 0:00:10]} 6. e3 {[%emt 0:00:02]} Be7 {[%emt 0:00:18]} 7. Nf3 {[%emt 0:00:20]} O-O {[%emt 0:00:03]} 8. c4 {[%emt 0:00:10]} c5 {[%emt 0:01:39]} 9. Nc3 {[%emt 0:00:17]} cxd4 {[%emt 0:00:38]} 10. Nxd4 {[%emt 0:00:17]} dxc4 {[%emt 0:00:14]} 11. Bxc4 {[%emt 0:00:04]} Nc5 {[%emt 0:00:18]} 12. O-O {[%emt 0:00:08]} a6 {[%emt 0:00:25]} 13. b4 {[%emt 0:00:38]} Nce4 {[%emt 0:00:04]} 14. Nxe4 {[%emt 0:00:03]} Nxe4 {[%emt 0:00:03]} 15. Bd3 {[%emt 0:00:05]} Nf6 {[%emt 0:00:08]} 16. Qf3 {[%emt 0:00:34]} Qb6 {[%emt 0:01:03]} 17. Be5 {[%emt 0:00:36]} Rfc8 {[%emt 0:01:12]} 18. Rfd1 {[%emt 0:02:40]} a5 {[%emt 0:03:02]} 19. bxa5 {[%emt 0:00:08]} Qxa5 {[%emt 0:00:27]} 20. Bxf6 {[%emt 0:02:06]} Bxf6 {[%emt 0:00:01]} 21. Qxb7 {[%emt 0:00:18]} Ba4 {[%emt 0:00:05]} 22. Rdc1 {[%emt 0:00:24]} Rcb8 {[%emt 0:01:07]} 23. Qe4 {[%emt 0:00:02]} g6 {[%emt 0:00:08]} 24. h4 {[%emt 0:00:53]} Rd8 {[%emt 0:02:04]} 25. Bc4 {[%emt 0:02:42]} Qe5 {[%emt 0:00:50]} 26. Qg4 {[%emt 0:01:04]} h5 {[%emt 0:00:17]} 27. Qf3 {[%emt 0:00:10]} Bxh4 {[%emt 0:01:07]} 28. Rab1 {[%emt 0:00:03]} Qf6 {[%emt 0:01:34]} 29. Qe2 {[%emt 0:00:19]} Be8 {[%emt 0:00:08]} 30. Nf3 {[%emt 0:01:10]} Rxa3 31. Bb5 {[%emt 0:00:13]} Bg5 {[%emt 0:00:52]} 32. Bxe8 {[%emt 0:00:03]} Rxe8 {[%emt 0:00:00]} 33. Qb5 {[%emt 0:00:09]} Rea8 {[%emt 0:00:53]} 34. Qxg5 {[%emt 0:00:03]} Qxg5 {[%emt 0:00:02]} 35. Nxg5 R8a7 36. Rc4 {[%emt 0:00:11]} R3a5 {[%emt 0:00:02]} 37. Nf3 {[%emt 0:00:09]} Kg7 {[%emt 0:00:03]} 38. Rcb4 {[%emt 0:00:04]} Ra1 {[%emt 0:00:06]} 39. Rxa1 {[%emt 0:00:02]} Rxa1+ {[%emt 0:00:01]} 40. Kh2 {[%emt 0:00:06]} Ra7 {[%emt 0:00:01]} 41. g3 {[%emt 0:00:17]} Rc7 {[%emt 0:00:05]} 42. Kg2 {[%emt 0:00:02]} Ra7 {[%emt 0:00:00]} 43. Nd4 {[%emt 0:00:05]} Rc7 {[%emt 0:00:05]} 44. e4 {[%emt 0:00:04]} Kf6 {[%emt 0:00:04]} 45. Rb5 {[%emt 0:00:15]} Rd7 {[%emt 0:00:20]} 46. e5+ {[%emt 0:00:09]} Kg7 {[%emt 0:00:01]} 47. Nf3 {[%emt 0:00:03]} Ra7 {[%emt 0:00:02]} 48. Ng5 {[%emt 0:00:04]} Kh6 {[%emt 0:00:02]} 49. f4 {[%emt 0:00:04]} Kg7 {[%emt 0:00:05]} 50. Kh3 {[%emt 0:00:02]} Rc7 {[%emt 0:00:01]} 51. Rb8 {[%emt 0:00:02]} Ra7 {[%emt 0:00:03]} 52. Re8 {[%emt 0:00:11]} Rb7 {[%emt 0:00:14]} 53. Ne4 {[%emt 0:00:08]} Ra7 {[%emt 0:00:23]} 54. Rb8 {[%emt 0:00:15]} Rc7 {[%emt 0:00:15]} 55. Nd6 {[%emt 0:00:19]} Ra7 {[%emt 0:00:08]} 56. Rb7 {[%emt 0:00:02]} Rxb7 {[%emt 0:00:03]} 57. Nxb7 {[%emt 0:00:01]} f6 {[%emt 0:00:20]} 58. Nd8 {[%emt 0:00:03]} 1-0

[Event "Hungarian Rapid-ch 2022"]
[Site "Ajka"]
[Date "2022.07.16"]
[Round "8.26"]
[White "Kassay, Krisztian"]
[Black "Lazarne Vajda, Szidonia"]
[Result "0-1"]
[ECO "D02"]
[WhiteElo "2157"]
[BlackElo "2313"]
[Annotator "ChessBase"]
[PlyCount "124"]
[EventDate "2022.07.15"]
[EventType "swiss"]
[EventCountry "HUN"]
[SourceTitle "playchess.com"]
[Source "ChessBase"]
[SourceQuality "1"]
[TimeControl "900+10"]

1. d4 {[%emt 0:00:48]} d5 {[%emt 0:00:21]} 2. Bf4 {[%emt 0:00:06]} Nf6 {[%emt 0:00:14]} 3. Nf3 {[%emt 0:00:14]} e6 {[%emt 0:00:14]} 4. e3 {[%emt 0:00:05]} c5 {[%emt 0:00:10]} 5. c3 {[%emt 0:00:13]} Bd6 {[%emt 0:00:38]} 6. Bg3 {[%emt 0:00:15]} Qc7 {[%emt 0:00:41]} 7. Nbd2 {[%emt 0:02:03]} Nbd7 {[%emt 0:00:28]} 8. Bd3 {[%emt 0:00:38]} O-O {[%emt 0:00:09]} 9. O-O {[%emt 0:00:54]} Bxg3 {[%emt 0:00:55]} 10. hxg3 {[%emt 0:00:03]} e5 {[%emt 0:00:02]} 11. dxe5 {[%emt 0:01:44]} Nxe5 {[%emt 0:00:03]} 12. Nxe5 {[%emt 0:00:33]} Qxe5 {[%emt 0:00:02]} 13. Nf3 {[%emt 0:00:19]} Qe7 {[%emt 0:00:03]} 14. Qc2 {[%emt 0:01:02]} g6 {[%emt 0:00:42]} 15. Rad1 {[%emt 0:01:05]} Bg4 {[%emt 0:00:08]} 16. Be2 {[%emt 0:00:23]} Rad8 {[%emt 0:00:19]} 17. Ng5 {[%emt 0:00:48]} Bxe2 {[%emt 0:03:02]} 18. Qxe2 {[%emt 0:00:02]} Rd6 {[%emt 0:00:19]} 19. Rd3 {[%emt 0:00:54]} Rfd8 {[%emt 0:00:35]} 20. Qf3 {[%emt 0:02:46]} Ne4 {[%emt 0:04:34]} 21. Nh3 {[%emt 0:00:03]} Ng5 {[%emt 0:01:10]} 22. Nxg5 {[%emt 0:00:13]} Qxg5 {[%emt 0:00:01]} 23. Rfd1 {[%emt 0:00:28]} b5 {[%emt 0:00:37]} 24. b3 {[%emt 0:00:37]} Qe5 {[%emt 0:00:12]} 25. Qg4 {[%emt 0:00:34]} h5 {[%emt 0:00:39]} 26. Qh4 {[%emt 0:00:15]} c4 {[%emt 0:00:29]} 27. Rd4 {[%emt 0:00:24]} cxb3 {[%emt 0:00:33]} 28. axb3 {[%emt 0:00:01]} Rc8 {[%emt 0:00:00]} 29. R1d3 {[%emt 0:01:11]} Kg7 {[%emt 0:00:16]} 30. Qf4 {[%emt 0:00:23]} Qxf4 {[%emt 0:01:01]} 31. gxf4 {[%emt 0:00:01]} Rdc6 {[%emt 0:00:07]} 32. Rxd5 {[%emt 0:00:20]} a6 {[%emt 0:00:00]} 33. c4 {[%emt 0:00:50]} bxc4 {[%emt 0:00:04]} 34. bxc4 {[%emt 0:00:00]} Rxc4 {[%emt 0:00:01]} 35. Ra5 {[%emt 0:00:17]} Rc1+ {[%emt 0:00:23]} 36. Kh2 {[%emt 0:00:01]} R8c2 {[%emt 0:00:07]} 37. e4 {[%emt 0:00:34]} Rxf2 {[%emt 0:00:05]} 38. f5 {[%emt 0:00:09]} g5 {[%emt 0:01:03]} 39. Rxa6 {[%emt 0:00:07]} Rcc2 {[%emt 0:00:07]} 40. Rg3 {[%emt 0:00:06]} g4 {[%emt 0:00:01]} 41. Rb6 {[%emt 0:00:16]} Rce2 {[%emt 0:00:02]} 42. Rb4 {[%emt 0:00:11]} Rf4 {[%emt 0:00:01]} 43. Ra3 {[%emt 0:00:12]} h4 {[%emt 0:00:04]} 44. Ra1 {[%emt 0:00:10]} Rfxe4 {[%emt 0:00:17]} 45. Rxe4 {[%emt 0:00:01]} Rxe4 {[%emt 0:00:01]} 46. Kg1 {[%emt 0:00:18]} Kf6 {[%emt 0:00:02]} 47. Ra5 {[%emt 0:00:01]} Re5 {[%emt 0:00:03]} 48. Ra4 {[%emt 0:00:18]} Kxf5 {[%emt 0:00:02]} 49. Kf2 {[%emt 0:00:03]} Rb5 {[%emt 0:00:03]} 50. Rc4 {[%emt 0:00:03]} Kg5 {[%emt 0:00:03]} 51. Ra4 {[%emt 0:00:03]} f5 {[%emt 0:00:01]} 52. Rc4 {[%emt 0:00:01]} Rb2+ {[%emt 0:00:00]} 53. Kg1 {[%emt 0:00:05]} g3 {[%emt 0:00:13]} 54. Rc1 {[%emt 0:00:19]} Kg4 {[%emt 0:00:06]} 55. Ra1 {[%emt 0:00:03]} f4 {[%emt 0:00:01]} 56. Rc1 {[%emt 0:00:03]} h3 {[%emt 0:00:02]} 57. gxh3+ {[%emt 0:00:11]} Kxh3 {[%emt 0:00:01]} 58. Rf1 {[%emt 0:00:05]} Kg4 {[%emt 0:00:11]} 59. Ra1 {[%emt 0:00:03]} f3 {[%emt 0:00:02]} 60. Rc1 {[%emt 0:00:07]} Rg2+ {[%emt 0:00:03]} 61. Kh1 {[%emt 0:00:01]} Rh2+ {[%emt 0:00:01]} 62. Kg1 {[%emt 0:00:01]} f2+ {[%emt 0:00:01]} 0-1

[Event "Hungarian Rapid-ch 2022"]
[Site "Ajka"]
[Date "2022.07.16"]
[Round "8.27"]
[White "Lakos, Nikoletta"]
[Black "Tubak, Daniel"]
[Result "1-0"]
[ECO "C54"]
[WhiteElo "2203"]
[BlackElo "2182"]
[Annotator "ChessBase"]
[PlyCount "99"]
[EventDate "2022.07.15"]
[EventType "swiss"]
[EventCountry "HUN"]
[SourceTitle "playchess.com"]
[Source "ChessBase"]
[SourceQuality "1"]
[TimeControl "900+10"]

1. e4 {[%emt 0:00:11]} e5 {[%emt 0:00:12]} 2. Nf3 {[%emt 0:00:04]} Nc6 {[%emt 0:00:01]} 3. Bc4 {[%emt 0:00:01]} Bc5 {[%emt 0:00:02]} 4. c3 {[%emt 0:00:01]} Nf6 {[%emt 0:00:02]} 5. d3 {[%emt 0:00:00]} d6 {[%emt 0:00:26]} 6. Nbd2 {[%emt 0:00:18]} a6 {[%emt 0:00:18]} 7. Bb3 {[%emt 0:00:02]} O-O {[%emt 0:00:08]} 8. Nf1 {[%emt 0:00:14]} Be6 {[%emt 0:01:03]} 9. Ng3 {[%emt 0:00:35]} h6 {[%emt 0:01:10]} 10. O-O {[%emt 0:00:12]} Ba7 {[%emt 0:00:19]} 11. h3 {[%emt 0:03:50]} Ne7 {[%emt 0:00:08]} 12. Nh4 {[%emt 0:00:20]} d5 {[%emt 0:00:39]} 13. Qf3 {[%emt 0:00:47]} dxe4 14. dxe4 Bxb3 {[%emt 0:00:21]} 15. axb3 {[%emt 0:00:02]} Ng6 {[%emt 0:00:52]} 16. Nhf5 {[%emt 0:00:02]} Nd7 {[%emt 0:01:16]} 17. Rd1 {[%emt 0:03:31]} Qe8 {[%emt 0:03:31]} 18. Nxg7 {[%emt 0:03:23]} Kxg7 {[%emt 0:00:06]} 19. Nh5+ {[%emt 0:02:07]} Kh8 {[%emt 0:01:04]} 20. Rxd7 {[%emt 0:00:03]} f5 {[%emt 0:00:11]} 21. Rd2 {[%emt 0:01:06]} Nh4 {[%emt 0:00:25]} 22. Qg3 {[%emt 0:00:30]} Qxh5 {[%emt 0:00:05]} 23. Qxe5+ {[%emt 0:00:01]} Kh7 {[%emt 0:00:28]} 24. Rd7+ {[%emt 0:00:02]} Rf7 {[%emt 0:00:02]} 25. Qxc7 {[%emt 0:00:21]} Qd1+ {[%emt 0:00:20]} 26. Rxd1 {[%emt 0:00:09]} Rxc7 {[%emt 0:00:01]} 27. Rd6 {[%emt 0:00:12]} Rc6 {[%emt 0:00:35]} 28. Rd7+ {[%emt 0:00:02]} Kg6 {[%emt 0:00:29]} 29. exf5+ {[%emt 0:00:07]} Nxf5 {[%emt 0:00:01]} 30. Rxb7 {[%emt 0:00:05]} Rf6 {[%emt 0:01:02]} 31. Bf4 Nh4 {[%emt 0:01:00]} 32. g3 {[%emt 0:00:23]} Nf3+ {[%emt 0:00:15]} 33. Kg2 {[%emt 0:00:01]} Ng5 {[%emt 0:00:02]} 34. Rf1 {[%emt 0:00:34]} Ne4 {[%emt 0:00:33]} 35. Re7 Ng5 36. Be5 {[%emt 0:00:56]} Re6 {[%emt 0:00:24]} 37. Rxe6+ {[%emt 0:00:02]} Nxe6 {[%emt 0:00:00]} 38. f4 Nc5 {[%emt 0:00:20]} 39. Rd1 {[%emt 0:00:13]} a5 {[%emt 0:00:52]} 40. Rd6+ {[%emt 0:00:01]} Kh7 {[%emt 0:00:06]} 41. Bd4 {[%emt 0:00:18]} Rc8 {[%emt 0:01:44]} 42. b4 {[%emt 0:00:13]} axb4 {[%emt 0:00:11]} 43. cxb4 Bb8 {[%emt 0:00:00]} 44. bxc5 {[%emt 0:00:21]} Bxd6 {[%emt 0:00:02]} 45. cxd6 {[%emt 0:00:01]} Rd8 {[%emt 0:00:06]} 46. Be5 {[%emt 0:00:05]} Kg6 {[%emt 0:00:02]} 47. g4 {[%emt 0:00:12]} Rb8 {[%emt 0:00:14]} 48. Kf3 {[%emt 0:00:08]} h5 {[%emt 0:00:19]} 49. Ke4 {[%emt 0:00:10]} hxg4 {[%emt 0:00:04]} 50. hxg4 1-0

[Event "Hungarian Rapid-ch 2022"]
[Site "Ajka"]
[Date "2022.07.16"]
[Round "8.28"]
[White "Boguszlavszkij, Jevgenyij"]
[Black "Martini, Balazs"]
[Result "1/2-1/2"]
[ECO "A45"]
[WhiteElo "1914"]
[BlackElo "2348"]
[Annotator "ChessBase"]
[PlyCount "116"]
[EventDate "2022.07.15"]
[EventType "swiss"]
[EventCountry "HUN"]
[SourceTitle "playchess.com"]
[Source "ChessBase"]
[SourceQuality "1"]
[TimeControl "900+10"]

1. d4 {[%emt 0:00:16]} Nf6 {[%emt 0:00:13]} 2. Bf4 {[%emt 0:00:02]} c5 {[%emt 0:00:17]} 3. c3 {[%emt 0:00:29]} e6 {[%emt 0:00:38]} 4. e3 {[%emt 0:00:12]} b6 {[%emt 0:00:14]} 5. Nd2 {[%emt 0:00:09]} Be7 {[%emt 0:00:41]} 6. Bd3 {[%emt 0:00:29]} Bb7 {[%emt 0:00:08]} 7. Ngf3 {[%emt 0:00:01]} O-O {[%emt 0:00:16]} 8. O-O {[%emt 0:00:57]} Nh5 {[%emt 0:02:10]} 9. Bg3 {[%emt 0:00:16]} d6 {[%emt 0:01:46]} 10. Re1 {[%emt 0:00:20]} Nd7 {[%emt 0:00:43]} 11. Nf1 {[%emt 0:01:32]} Rc8 {[%emt 0:02:00]} 12. e4 {[%emt 0:00:14]} Nxg3 {[%emt 0:01:22]} 13. Nxg3 {[%emt 0:00:04]} Re8 {[%emt 0:01:29]} 14. e5 {[%emt 0:00:18]} Qc7 {[%emt 0:01:37]} 15. Qe2 {[%emt 0:01:04]} Bxf3 {[%emt 0:00:17]} 16. Qxf3 {[%emt 0:00:06]} dxe5 {[%emt 0:00:19]} 17. dxe5 {[%emt 0:00:04]} Nxe5 {[%emt 0:00:20]} 18. Bxh7+ {[%emt 0:00:13]} Kxh7 {[%emt 0:00:01]} 19. Qh5+ {[%emt 0:00:01]} Kg8 {[%emt 0:00:01]} 20. Rxe5 {[%emt 0:00:17]} Bf6 {[%emt 0:01:18]} 21. Re3 {[%emt 0:00:52]} g6 {[%emt 0:00:29]} 22. Qf3 {[%emt 0:00:14]} Bg7 {[%emt 0:00:01]} 23. Ne4 {[%emt 0:00:26]} Qe5 {[%emt 0:00:02]} 24. Rae1 {[%emt 0:00:26]} Rcd8 {[%emt 0:00:06]} 25. Ng3 {[%emt 0:00:15]} Qf6 {[%emt 0:00:10]} 26. Qe2 {[%emt 0:00:14]} Rd5 {[%emt 0:00:12]} 27. Ne4 {[%emt 0:00:56]} Qe7 {[%emt 0:00:10]} 28. Qc4 {[%emt 0:00:49]} Red8 {[%emt 0:00:07]} 29. h3 {[%emt 0:00:10]} Qb7 {[%emt 0:00:10]} 30. h4 {[%emt 0:00:19]} Rd1 {[%emt 0:00:30]} 31. Ng5 {[%emt 0:00:11]} Qd5 {[%emt 0:00:35]} 32. Qf4 {[%emt 0:00:22]} e5 {[%emt 0:00:17]} 33. Qf3 {[%emt 0:00:33]} Qxf3 {[%emt 0:00:34]} 34. Nxf3 {[%emt 0:00:02]} f6 {[%emt 0:00:17]} 35. Kf1 {[%emt 0:00:12]} R1d5 {[%emt 0:00:22]} 36. Ke2 {[%emt 0:00:13]} c4 {[%emt 0:00:29]} 37. Kf1 {[%emt 0:00:27]} Kf7 {[%emt 0:00:17]} 38. g3 {[%emt 0:00:04]} Bh6 {[%emt 0:00:05]} 39. Re4 {[%emt 0:00:06]} b5 {[%emt 0:00:13]} 40. g4 {[%emt 0:00:05]} Bd2 {[%emt 0:00:34]} 41. R1e2 {[%emt 0:00:20]} Bf4 {[%emt 0:00:02]} 42. g5 {[%emt 0:00:14]} a6 {[%emt 0:00:08]} 43. gxf6 {[%emt 0:00:12]} Kxf6 {[%emt 0:00:00]} 44. Nd4 {[%emt 0:00:51]} R8d6 {[%emt 0:00:02]} 45. Kg2 {[%emt 0:00:50]} Bc1 {[%emt 0:00:18]} 46. Nf3 {[%emt 0:00:08]} Bf4 {[%emt 0:00:01]} 47. Nh2 {[%emt 0:00:15]} Kf5 {[%emt 0:00:08]} 48. Nf1 {[%emt 0:00:28]} Rd3 {[%emt 0:00:15]} 49. Ng3+ {[%emt 0:00:12]} Bxg3 {[%emt 0:00:34]} 50. fxg3 {[%emt 0:00:02]} R6d5 {[%emt 0:00:01]} 51. g4+ {[%emt 0:00:06]} Ke6 {[%emt 0:00:05]} 52. Rf2 {[%emt 0:00:19]} Rd2 {[%emt 0:00:28]} 53. Ree2 {[%emt 0:00:14]} Rxe2 54. Rxe2 {[%emt 0:00:01]} Rd3 {[%emt 0:00:15]} 55. Kg1 {[%emt 0:02:22]} Kd5 {[%emt 0:00:13]} 56. h5 {[%emt 0:00:15]} gxh5 {[%emt 0:00:15]} 57. gxh5 {[%emt 0:00:01]} Rg3+ {[%emt 0:00:13]} 58. Kh1 {[%emt 0:00:10]} Rg7 1/2-1/2